[Event "Titled Tuesday Blitz August 1 Late 2023"]
[White "Manukyan, Sargis A."]
[Black "Bochnicka, Vladimir"]
[WhiteFideId "13303970"]
[BlackFideId "14943450"]
[WhiteElo "2662"]
[BlackElo "2527"]
[Result "1-0"]
[Round "8"]
[TimeControl "180+1"]
[Date "2023.08.01"]
[WhiteClock "0:00:10"]
[BlackClock "0:00:00"]
[Board "34"]

1. d4 {[%clk 0:03:00]}  Nf6 {[%clk 0:03:00]} 2. c4 {[%clk 0:03:01]}  g6 {[%clk 0:03:00]} 3. Nc3 {[%clk 0:03:01]}  Bg7 {[%clk 0:03:01]} 4. Nf3 {[%clk 0:03:02]}  O-O {[%clk 0:03:01]} 5. h3 {[%clk 0:03:03]}  d6 {[%clk 0:03:01]} 6. Bf4 {[%clk 0:03:03]}  Nc6 {[%clk 0:03:01]} 7. e3 {[%clk 0:03:04]}  Nd7 {[%clk 0:02:59]} 8. Be2 {[%clk 0:03:05]}  e5 {[%clk 0:03:00]} 9. dxe5 {[%clk 0:03:05]}  dxe5 {[%clk 0:03:00]} 10. Bg3 {[%clk 0:03:06]}  f5 {[%clk 0:02:45]} 11. h4 {[%clk 0:03:03]}  f4 {[%clk 0:02:37]} 12. Bh2 {[%clk 0:03:01]}  Nc5 {[%clk 0:02:27]} 13. Qd5+ {[%clk 0:03:00]}  Qxd5 {[%clk 0:02:25]} 14. cxd5 {[%clk 0:03:00]}  Nb4 {[%clk 0:02:16]} 15. O-O-O {[%clk 0:02:58]}  Bf5 {[%clk 0:02:06]} 16. Kd2 {[%clk 0:02:00]}  Rad8 {[%clk 0:01:53]} 17. Bc4 {[%clk 0:01:46]}  Kh8 {[%clk 0:01:44]} 18. Ke2 {[%clk 0:01:40]}  e4 {[%clk 0:01:30]} 19. Ng5 {[%clk 0:01:31]}  f3+ {[%clk 0:01:29]} 20. gxf3 {[%clk 0:01:29]}  exf3+ {[%clk 0:01:29]} 21. Kf1 {[%clk 0:01:26]}  h6 {[%clk 0:01:27]} 22. Bxc7 {[%clk 0:01:21]}  Rd7 {[%clk 0:01:19]} 23. d6 {[%clk 0:01:13]}  Nbd3 {[%clk 0:00:58]} 24. e4 {[%clk 0:01:06]}  Nxb2 {[%clk 0:00:51]} 25. exf5 {[%clk 0:01:02]}  Nxc4 {[%clk 0:00:51]} 26. Ne6 {[%clk 0:00:59]}  Rxf5 {[%clk 0:00:43]} 27. Nxg7 {[%clk 0:00:55]}  Kxg7 {[%clk 0:00:42]} 28. Nd5 {[%clk 0:00:56]}  Nxd6 {[%clk 0:00:31]} 29. Ne3 {[%clk 0:00:48]}  Rxc7 {[%clk 0:00:26]} 30. Rxd6 {[%clk 0:00:45]}  Re5 {[%clk 0:00:21]} 31. Rg1 {[%clk 0:00:42]}  Re6 {[%clk 0:00:19]} 32. Rd1 {[%clk 0:00:26]}  Ne4 {[%clk 0:00:13]} 33. Rg4 {[%clk 0:00:26]}  Nc3 {[%clk 0:00:04]} 34. Rc1 {[%clk 0:00:25]}  Nb5 {[%clk 0:00:03]} 35. Rd1 {[%clk 0:00:22]}  h5 {[%clk 0:00:04]} 36. Rg5 {[%clk 0:00:21]}  Nc3 {[%clk 0:00:02]} 37. Rc1 {[%clk 0:00:18]}  Rec6 {[%clk 0:00:03]} 38. Nf5+ {[%clk 0:00:17]}  Kf6 {[%clk 0:00:03]} 39. Nd4 {[%clk 0:00:18]}  Rc5 {[%clk 0:00:02]} 40. Nxf3 {[%clk 0:00:16]}  Ne4 {[%clk 0:00:01]} 41. Rgxc5 {[%clk 0:00:14]}  Rxc5 {[%clk 0:00:02]} 42. Rb1 {[%clk 0:00:14]}  Nc3 {[%clk 0:00:02]} 43. Rxb7 {[%clk 0:00:14]}  Ra5 {[%clk 0:00:02]} 44. Rb3 {[%clk 0:00:13]}  Nxa2 {[%clk 0:00:02]} 45. Rd3 {[%clk 0:00:10]}  Nb4 {[%clk 0:00:02]} 46. Rd6+ {[%clk 0:00:11]}  Kf5 {[%clk 0:00:02]} 47. Kg2 {[%clk 0:00:10]}  Nd5 {[%clk 0:00:01]} 48. Kg3 {[%clk 0:00:09]}  Nf4 {[%clk 0:00:02]} 49. Rd8 {[%clk 0:00:07]}  Ne6 {[%clk 0:00:02]} 50. Rd7 {[%clk 0:00:07]}  Ra3 {[%clk 0:00:02]} 51. Rf7+ {[%clk 0:00:06]}  Ke4 {[%clk 0:00:02]} 52. Rf6 {[%clk 0:00:03]}  Nd4 {[%clk 0:00:02]} 53. Rf4+ {[%clk 0:00:03]}  Kd3 {[%clk 0:00:02]} 54. Rxd4+ {[%clk 0:00:04]}  Ke2 {[%clk 0:00:02]} 55. Rf4 {[%clk 0:00:05]}  a5 {[%clk 0:00:01]} 56. Kg2 {[%clk 0:00:05]}  Kd1 {[%clk 0:00:01]} 57. Ng1 {[%clk 0:00:06]}  a4 {[%clk 0:00:01]} 58. Rf6 {[%clk 0:00:07]}  Ke1 {[%clk 0:00:01]} 59. Rxg6 {[%clk 0:00:07]}  Ra2 {[%clk 0:00:02]} 60. Re6+ {[%clk 0:00:08]}  Kd1 {[%clk 0:00:02]} 61. Ra6 {[%clk 0:00:09]}  a3 {[%clk 0:00:02]} 62. Nf3 {[%clk 0:00:10]}  Ke2 {[%clk 0:00:01]} 63. Nd4+ {[%clk 0:00:09]}  Kd3 {[%clk 0:00:00]} 64. Nb5 {[%clk 0:00:10]} 1-0


[Site "https://www.chess.com"]

[Event "Titled Tuesday Blitz August 1 Late 2023"]
[White "Goldin, Alexander"]
[Black "Haszon, David"]
[WhiteFideId "2019540"]
[BlackFideId "733610"]
[WhiteElo "2607"]
[BlackElo "2519"]
[Result "0-1"]
[Round "8"]
[TimeControl "180+1"]
[Date "2023.08.01"]
[WhiteClock "0:00:00"]
[BlackClock "0:00:13"]
[Board "36"]

1. Nf3 {[%clk 0:02:44]}  Nf6 {[%clk 0:02:53]} 2. d4 {[%clk 0:02:40]}  g6 {[%clk 0:02:54]} 3. g3 {[%clk 0:02:40]}  Bg7 {[%clk 0:02:53]} 4. Bg2 {[%clk 0:02:41]}  O-O {[%clk 0:02:54]} 5. O-O {[%clk 0:02:41]}  d5 {[%clk 0:02:55]} 6. c4 {[%clk 0:02:40]}  c6 {[%clk 0:02:54]} 7. Qb3 {[%clk 0:02:39]}  Qb6 {[%clk 0:02:49]} 8. Nc3 {[%clk 0:02:36]}  dxc4 {[%clk 0:02:48]} 9. Qxc4 {[%clk 0:02:36]}  Be6 {[%clk 0:02:48]} 10. Qd3 {[%clk 0:02:31]}  Qa6 {[%clk 0:02:45]} 11. Qc2 {[%clk 0:02:29]}  Rd8 {[%clk 0:02:44]} 12. Rd1 {[%clk 0:02:20]}  Nbd7 {[%clk 0:02:17]} 13. Ng5 {[%clk 0:02:02]}  Nf8 {[%clk 0:02:04]} 14. Nxe6 {[%clk 0:01:52]}  Nxe6 {[%clk 0:02:05]} 15. e3 {[%clk 0:01:50]}  Rac8 {[%clk 0:01:39]} 16. Bd2 {[%clk 0:01:48]}  Nd5 {[%clk 0:01:36]} 17. Be1 {[%clk 0:01:41]}  Nxc3 {[%clk 0:01:32]} 18. bxc3 {[%clk 0:01:31]}  c5 {[%clk 0:01:25]} 19. Rab1 {[%clk 0:01:28]}  b6 {[%clk 0:01:15]} 20. d5 {[%clk 0:01:27]}  Nf8 {[%clk 0:00:54]} 21. e4 {[%clk 0:01:23]}  Nd7 {[%clk 0:00:45]} 22. f4 {[%clk 0:01:17]}  c4 {[%clk 0:00:38]} 23. e5 {[%clk 0:00:38]}  Nc5 {[%clk 0:00:38]} 24. Bf2 {[%clk 0:00:36]}  Nd3 {[%clk 0:00:37]} 25. Bd4 {[%clk 0:00:36]}  f6 {[%clk 0:00:30]} 26. Qe2 {[%clk 0:00:34]}  Qa5 {[%clk 0:00:25]} 27. Qe4 {[%clk 0:00:23]}  f5 {[%clk 0:00:23]} 28. Qf3 {[%clk 0:00:21]}  Rd7 {[%clk 0:00:18]} 29. d6 {[%clk 0:00:16]}  exd6 {[%clk 0:00:17]} 30. Qd5+ {[%clk 0:00:16]}  Qxd5 {[%clk 0:00:17]} 31. Bxd5+ {[%clk 0:00:16]}  Kf8 {[%clk 0:00:18]} 32. Be6 {[%clk 0:00:15]}  Rcc7 {[%clk 0:00:16]} 33. Bxd7 {[%clk 0:00:14]}  Rxd7 {[%clk 0:00:17]} 34. e6 {[%clk 0:00:14]}  Re7 {[%clk 0:00:15]} 35. Bxg7+ {[%clk 0:00:12]}  Kxg7 {[%clk 0:00:16]} 36. Rd2 {[%clk 0:00:09]}  Rxe6 {[%clk 0:00:16]} 37. a4 {[%clk 0:00:10]}  d5 {[%clk 0:00:14]} 38. a5 {[%clk 0:00:10]}  Kf6 {[%clk 0:00:14]} 39. Rb5 {[%clk 0:00:10]}  Rd6 {[%clk 0:00:13]} 40. Re2 {[%clk 0:00:11]}  Nc5 {[%clk 0:00:12]} 41. axb6 {[%clk 0:00:11]}  axb6 {[%clk 0:00:12]} 42. Re8 {[%clk 0:00:12]}  Ne4 {[%clk 0:00:13]} 43. Rf8+ {[%clk 0:00:11]}  Kg7 {[%clk 0:00:13]} 44. Rb8 {[%clk 0:00:11]}  Nxc3 {[%clk 0:00:12]} 45. R5xb6 {[%clk 0:00:12]}  Rxb6 {[%clk 0:00:12]} 46. Rxb6 {[%clk 0:00:12]}  d4 {[%clk 0:00:13]} 47. Kf2 {[%clk 0:00:10]}  d3 {[%clk 0:00:13]} 48. Ke3 {[%clk 0:00:10]}  Ne4 {[%clk 0:00:13]} 49. Rb7+ {[%clk 0:00:11]}  Kh6 {[%clk 0:00:13]} 50. Rc7 {[%clk 0:00:11]}  d2 {[%clk 0:00:13]} 51. Ke2 {[%clk 0:00:12]}  c3 {[%clk 0:00:13]} 52. Rc6 {[%clk 0:00:09]}  Kh5 {[%clk 0:00:13]} 53. Kd1 {[%clk 0:00:08]}  h6 {[%clk 0:00:13]} 54. Re6 {[%clk 0:00:07]}  g5 {[%clk 0:00:13]} 55. h3 {[%clk 0:00:06]}  gxf4 {[%clk 0:00:13]} 56. gxf4 {[%clk 0:00:06]}  Nf2+ {[%clk 0:00:11]} 57. Ke2 {[%clk 0:00:05]}  d1=Q+ {[%clk 0:00:12]} 58. Kxf2 {[%clk 0:00:06]}  Qd2+ {[%clk 0:00:11]} 59. Kg3 {[%clk 0:00:06]}  Qd3+ {[%clk 0:00:11]} 60. Kg2 {[%clk 0:00:06]}  c2 {[%clk 0:00:11]} 61. Re1 {[%clk 0:00:06]}  Qe4+ {[%clk 0:00:11]} 62. Rxe4 {[%clk 0:00:05]}  fxe4 {[%clk 0:00:12]} 63. Kg3 {[%clk 0:00:00]}  c1=Q {[%clk 0:00:13]} 0-1


[Site "https://www.chess.com"]

[Event "Titled Tuesday Blitz August 1 Late 2023"]
[White "Gasparyan, David"]
[Black "Ganiev, Roman"]
[WhiteFideId "13311980"]
[BlackFideId "4131452"]
[WhiteElo "2515"]
[BlackElo "2603"]
[Result "1-0"]
[Round "8"]
[TimeControl "180+1"]
[Date "2023.08.01"]
[WhiteClock "0:01:27"]
[BlackClock "0:00:03"]
[Board "37"]

1. e4 {[%clk 0:03:00]}  c5 {[%clk 0:02:59]} 2. Nc3 {[%clk 0:03:00]}  d6 {[%clk 0:02:59]} 3. f4 {[%clk 0:02:59]}  g6 {[%clk 0:03:00]} 4. Nf3 {[%clk 0:02:58]}  Bg7 {[%clk 0:03:00]} 5. d4 {[%clk 0:02:56]}  cxd4 {[%clk 0:02:58]} 6. Nxd4 {[%clk 0:02:57]}  Bd7 {[%clk 0:02:56]} 7. Be3 {[%clk 0:02:56]}  Nc6 {[%clk 0:02:55]} 8. Nb3 {[%clk 0:02:56]}  Nf6 {[%clk 0:02:54]} 9. Be2 {[%clk 0:02:55]}  Rc8 {[%clk 0:02:54]} 10. O-O {[%clk 0:02:55]}  O-O {[%clk 0:02:54]} 11. Bf3 {[%clk 0:02:54]}  a6 {[%clk 0:02:53]} 12. Kh1 {[%clk 0:02:50]}  h5 {[%clk 0:02:26]} 13. Qd2 {[%clk 0:02:40]}  Ng4 {[%clk 0:02:06]} 14. Bg1 {[%clk 0:02:37]}  Na5 {[%clk 0:02:06]} 15. Nxa5 {[%clk 0:02:29]}  Qxa5 {[%clk 0:02:07]} 16. h3 {[%clk 0:02:28]}  Nf6 {[%clk 0:01:02]} 17. Rad1 {[%clk 0:02:12]}  Qb4 {[%clk 0:01:02]} 18. e5 {[%clk 0:02:04]}  Nh7 {[%clk 0:00:11]} 19. Nd5 {[%clk 0:02:02]}  Qxd2 {[%clk 0:00:12]} 20. Nxe7+ {[%clk 0:02:02]}  Kh8 {[%clk 0:00:13]} 21. Rxd2 {[%clk 0:02:02]}  Rce8 {[%clk 0:00:10]} 22. exd6 {[%clk 0:01:57]}  Bxb2 {[%clk 0:00:10]} 23. Bxb7 {[%clk 0:01:58]}  a5 {[%clk 0:00:10]} 24. Bc6 {[%clk 0:01:52]}  Nf6 {[%clk 0:00:10]} 25. Bc5 {[%clk 0:01:46]}  Bxc6 {[%clk 0:00:10]} 26. Nxc6 {[%clk 0:01:46]}  Ne4 {[%clk 0:00:10]} 27. d7 {[%clk 0:01:42]}  Nxd2 {[%clk 0:00:10]} 28. Bxf8 {[%clk 0:01:40]}  Rxf8 {[%clk 0:00:09]} 29. Rd1 {[%clk 0:01:40]}  Bc3 {[%clk 0:00:08]} 30. d8=Q {[%clk 0:01:39]}  Rxd8 {[%clk 0:00:08]} 31. Nxd8 {[%clk 0:01:40]}  Kg7 {[%clk 0:00:09]} 32. Nc6 {[%clk 0:01:38]}  Ne4 {[%clk 0:00:09]} 33. Rd7 {[%clk 0:01:35]}  h4 {[%clk 0:00:05]} 34. Ne5 {[%clk 0:01:31]}  Ng3+ {[%clk 0:00:03]} 35. Kg1 {[%clk 0:01:29]}  Bb4 {[%clk 0:00:04]} 36. Rxf7+ {[%clk 0:01:28]}  Kh6 {[%clk 0:00:04]} 37. Ng4+ {[%clk 0:01:27]}  Kh5 {[%clk 0:00:03]} 38. Rh7# {[%clk 0:01:27]} 1-0


[Site "https://www.chess.com"]

[Event "Titled Tuesday Blitz August 1 Late 2023"]
[White "feuervogel1000000"]
[Black "Papasimakopoulos, Alexandros"]
[BlackFideId "4244125"]
[WhiteElo "2513"]
[BlackElo "2682"]
[Result "0-1"]
[Round "8"]
[TimeControl "180+1"]
[Date "2023.08.01"]
[WhiteClock "0:01:24"]
[BlackClock "0:01:01"]
[Board "43"]

1. e4 {[%clk 0:03:00]}  e6 {[%clk 0:02:59]} 2. d4 {[%clk 0:03:00]}  d5 {[%clk 0:03:00]} 3. Nc3 {[%clk 0:03:00]}  Bb4 {[%clk 0:02:59]} 4. e5 {[%clk 0:02:59]}  c5 {[%clk 0:03:00]} 5. a3 {[%clk 0:02:59]}  Bxc3+ {[%clk 0:03:00]} 6. bxc3 {[%clk 0:03:00]}  Nc6 {[%clk 0:03:01]} 7. Qg4 {[%clk 0:02:59]}  g6 {[%clk 0:03:00]} 8. h4 {[%clk 0:02:57]}  h6 {[%clk 0:03:00]} 9. h5 {[%clk 0:02:49]}  g5 {[%clk 0:03:00]} 10. f4 {[%clk 0:02:49]}  f5 {[%clk 0:03:00]} 11. Qg3 {[%clk 0:02:49]}  g4 {[%clk 0:03:00]} 12. Ne2 {[%clk 0:02:48]}  c4 {[%clk 0:02:57]} 13. Be3 {[%clk 0:02:44]}  Qa5 {[%clk 0:02:51]} 14. Kd2 {[%clk 0:02:43]}  Bd7 {[%clk 0:02:50]} 15. Qh4 {[%clk 0:02:40]}  Nce7 {[%clk 0:02:48]} 16. Qe1 {[%clk 0:02:38]}  Nc8 {[%clk 0:02:41]} 17. Qb1 {[%clk 0:02:37]}  Rb8 {[%clk 0:02:34]} 18. Qb4 {[%clk 0:02:36]}  Qa6 {[%clk 0:02:34]} 19. a4 {[%clk 0:02:34]}  Nge7 {[%clk 0:02:34]} 20. g3 {[%clk 0:02:33]}  Nc6 {[%clk 0:02:34]} 21. Qb2 {[%clk 0:02:32]}  Nb6 {[%clk 0:02:28]} 22. a5 {[%clk 0:02:26]}  Nc8 {[%clk 0:02:23]} 23. Qa3 {[%clk 0:02:26]}  b6 {[%clk 0:02:15]} 24. axb6 {[%clk 0:02:25]}  Qxa3 {[%clk 0:02:15]} 25. Rxa3 {[%clk 0:02:26]}  Rxb6 {[%clk 0:02:16]} 26. Bg2 {[%clk 0:02:26]}  Kd8 {[%clk 0:02:12]} 27. Rha1 {[%clk 0:02:25]}  Kc7 {[%clk 0:02:12]} 28. Kd1 {[%clk 0:02:18]}  Be8 {[%clk 0:02:11]} 29. Bc1 {[%clk 0:02:18]}  Bxh5 {[%clk 0:02:11]} 30. Ra4 {[%clk 0:02:12]}  Be8 {[%clk 0:02:08]} 31. Ba3 {[%clk 0:02:12]}  h5 {[%clk 0:02:04]} 32. Kd2 {[%clk 0:02:11]}  h4 {[%clk 0:02:04]} 33. gxh4 {[%clk 0:02:12]}  Rxh4 {[%clk 0:02:04]} 34. Bc5 {[%clk 0:02:11]}  Rh2 {[%clk 0:01:57]} 35. Bxb6+ {[%clk 0:02:03]}  Nxb6 {[%clk 0:01:57]} 36. Rxa7+ {[%clk 0:02:03]}  Nxa7 {[%clk 0:01:57]} 37. Rxa7+ {[%clk 0:02:04]}  Kc6 {[%clk 0:01:44]} 38. Bf1 {[%clk 0:02:02]}  Bd7 {[%clk 0:01:42]} 39. Ke3 {[%clk 0:02:00]}  Rh1 {[%clk 0:01:35]} 40. Kf2 {[%clk 0:01:59]}  Rh2+ {[%clk 0:01:34]} 41. Bg2 {[%clk 0:01:59]}  Rh8 {[%clk 0:01:34]} 42. Ng3 {[%clk 0:01:58]}  Ra8 {[%clk 0:01:34]} 43. Rxa8 {[%clk 0:01:58]}  Nxa8 {[%clk 0:01:35]} 44. Nh5 {[%clk 0:01:58]}  Nb6 {[%clk 0:01:34]} 45. Ke2 {[%clk 0:01:58]}  Be8 {[%clk 0:01:31]} 46. Nf6 {[%clk 0:01:56]}  Bf7 {[%clk 0:01:32]} 47. Nh7 {[%clk 0:01:56]}  Kb5 {[%clk 0:01:30]} 48. Kd2 {[%clk 0:01:51]}  Ka4 {[%clk 0:01:30]} 49. Nf6 {[%clk 0:01:48]}  Ka3 {[%clk 0:01:29]} 50. Bf1 {[%clk 0:01:44]}  Kb2 {[%clk 0:01:28]} 51. Be2 {[%clk 0:01:41]}  Na4 {[%clk 0:01:27]} 52. Nd7 {[%clk 0:01:41]}  Nxc3 {[%clk 0:01:27]} 53. Nc5 {[%clk 0:01:42]}  Ne4+ {[%clk 0:01:27]} 54. Nxe4 {[%clk 0:01:42]}  fxe4 {[%clk 0:01:16]} 55. Bxg4 {[%clk 0:01:41]}  c3+ {[%clk 0:01:16]} 56. Kd1 {[%clk 0:01:41]}  e3 {[%clk 0:01:11]} 57. Ke2 {[%clk 0:01:32]}  Kxc2 {[%clk 0:01:08]} 58. Kxe3 {[%clk 0:01:32]}  Kb2 {[%clk 0:01:06]} 59. Bd1 {[%clk 0:01:31]}  Bg6 {[%clk 0:01:03]} 60. Kf2 {[%clk 0:01:25]}  c2 {[%clk 0:01:02]} 61. Bxc2 {[%clk 0:01:25]}  Kxc2 {[%clk 0:01:03]} 62. Kg3 {[%clk 0:01:25]}  Kd3 {[%clk 0:01:01]} 63. Kg4 {[%clk 0:01:26]}  Kxd4 {[%clk 0:01:01]} 64. Kg5 {[%clk 0:01:27]}  Bf5 {[%clk 0:01:01]} 65. Kf6 {[%clk 0:01:24]}  Ke4 {[%clk 0:01:01]} 0-1


[Site "https://www.chess.com"]

[Event "Titled Tuesday Blitz August 1 Late 2023"]
[White "Jimenez Jimenez, Leandro"]
[Black "Tologon tegin, Semetei"]
[WhiteFideId "6415253"]
[BlackFideId "13800574"]
[WhiteElo "2509"]
[BlackElo "2599"]
[Result "0-1"]
[Round "8"]
[TimeControl "180+1"]
[Date "2023.08.01"]
[WhiteClock "0:00:00"]
[BlackClock "0:00:49"]
[Board "47"]

1. d4 {[%clk 0:02:56]}  Nf6 {[%clk 0:02:59]} 2. c4 {[%clk 0:02:53]}  g6 {[%clk 0:02:57]} 3. Nc3 {[%clk 0:02:50]}  d5 {[%clk 0:02:57]} 4. Bg5 {[%clk 0:02:50]}  Ne4 {[%clk 0:02:56]} 5. Bh4 {[%clk 0:02:49]}  Nxc3 {[%clk 0:02:55]} 6. bxc3 {[%clk 0:02:49]}  c6 {[%clk 0:02:55]} 7. e3 {[%clk 0:02:49]}  Bg7 {[%clk 0:02:55]} 8. Nf3 {[%clk 0:02:49]}  O-O {[%clk 0:02:54]} 9. Be2 {[%clk 0:02:47]}  Nd7 {[%clk 0:02:53]} 10. O-O {[%clk 0:02:47]}  Nf6 {[%clk 0:02:53]} 11. Qb3 {[%clk 0:02:36]}  b6 {[%clk 0:02:52]} 12. Qa3 {[%clk 0:02:34]}  Be6 {[%clk 0:02:46]} 13. Ne5 {[%clk 0:02:28]}  Qc7 {[%clk 0:02:42]} 14. cxd5 {[%clk 0:02:13]}  cxd5 {[%clk 0:02:42]} 15. Rfc1 {[%clk 0:02:06]}  Qb7 {[%clk 0:02:20]} 16. Ba6 {[%clk 0:02:00]}  Qc7 {[%clk 0:02:19]} 17. c4 {[%clk 0:01:54]}  dxc4 {[%clk 0:02:19]} 18. Nxc4 {[%clk 0:01:37]}  Bxc4 {[%clk 0:02:19]} 19. Rxc4 {[%clk 0:01:36]}  Qd7 {[%clk 0:02:19]} 20. Rac1 {[%clk 0:01:20]}  Nd5 {[%clk 0:02:18]} 21. Rc6 {[%clk 0:00:45]}  Bf6 {[%clk 0:01:53]} 22. Bg3 {[%clk 0:00:41]}  Rad8 {[%clk 0:01:37]} 23. e4 {[%clk 0:00:34]}  Bg5 {[%clk 0:01:36]} 24. exd5 {[%clk 0:00:26]}  Bxc1 {[%clk 0:01:35]} 25. Rxc1 {[%clk 0:00:17]}  Qxd5 {[%clk 0:01:34]} 26. Qxe7 {[%clk 0:00:16]}  Qxa2 {[%clk 0:01:30]} 27. Be5 {[%clk 0:00:15]}  Rde8 {[%clk 0:01:18]} 28. Qf6 {[%clk 0:00:14]}  Rxe5 {[%clk 0:01:18]} 29. dxe5 {[%clk 0:00:07]}  Qxa6 {[%clk 0:01:18]} 30. e6 {[%clk 0:00:08]}  Qb7 {[%clk 0:00:59]} 31. e7 {[%clk 0:00:07]}  Re8 {[%clk 0:00:59]} 32. Re1 {[%clk 0:00:07]}  Qd7 {[%clk 0:00:58]} 33. h4 {[%clk 0:00:07]}  h5 {[%clk 0:00:57]} 34. f3 {[%clk 0:00:04]}  b5 {[%clk 0:00:56]} 35. Qe5 {[%clk 0:00:03]}  b4 {[%clk 0:00:55]} 36. Qc5 {[%clk 0:00:02]}  b3 {[%clk 0:00:54]} 37. Qb4 {[%clk 0:00:01]}  b2 {[%clk 0:00:53]} 38. Qxb2 {[%clk 0:00:02]}  Rxe7 {[%clk 0:00:53]} 39. Rxe7 {[%clk 0:00:03]}  Qxe7 {[%clk 0:00:53]} 40. Qb8+ {[%clk 0:00:03]}  Kg7 {[%clk 0:00:53]} 41. Qg3 {[%clk 0:00:04]}  Qe3+ {[%clk 0:00:51]} 42. Kh2 {[%clk 0:00:04]}  a5 {[%clk 0:00:51]} 43. Qd6 {[%clk 0:00:03]}  a4 {[%clk 0:00:50]} 44. Qa6 {[%clk 0:00:02]}  a3 {[%clk 0:00:49]} 45. Kh3 {[%clk 0:00:00]}  Qe6+ {[%clk 0:00:49]} 0-1


[Site "https://www.chess.com"]

[Event "Titled Tuesday Blitz August 1 Late 2023"]
[White "Jovic, Stanoje"]
[Black "Manukyan, Sargis V."]
[WhiteFideId "905020"]
[BlackFideId "13303465"]
[WhiteElo "2506"]
[BlackElo "2594"]
[Result "0-1"]
[Round "8"]
[TimeControl "180+1"]
[Date "2023.08.01"]
[WhiteClock "0:00:00"]
[BlackClock "0:00:01"]
[Board "48"]

1. c4 {[%clk 0:03:00]}  Nf6 {[%clk 0:02:16]} 2. g3 {[%clk 0:03:00]}  c5 {[%clk 0:02:15]} 3. Bg2 {[%clk 0:03:00]}  g6 {[%clk 0:02:15]} 4. Nc3 {[%clk 0:02:59]}  Bg7 {[%clk 0:02:16]} 5. Nf3 {[%clk 0:02:59]}  O-O {[%clk 0:02:17]} 6. O-O {[%clk 0:02:59]}  Nc6 {[%clk 0:02:18]} 7. d4 {[%clk 0:03:00]}  cxd4 {[%clk 0:02:19]} 8. Nxd4 {[%clk 0:03:00]}  Ng4 {[%clk 0:02:19]} 9. e3 {[%clk 0:02:59]}  d6 {[%clk 0:02:14]} 10. b3 {[%clk 0:02:57]}  Nxd4 {[%clk 0:02:07]} 11. exd4 {[%clk 0:02:57]}  Nh6 {[%clk 0:02:07]} 12. Bb2 {[%clk 0:02:53]}  Nf5 {[%clk 0:02:08]} 13. Nd5 {[%clk 0:02:47]}  Rb8 {[%clk 0:02:06]} 14. Re1 {[%clk 0:02:47]}  Be6 {[%clk 0:01:57]} 15. Nf4 {[%clk 0:02:39]}  Bd7 {[%clk 0:01:54]} 16. g4 {[%clk 0:02:38]}  Nh4 {[%clk 0:01:51]} 17. Bh1 {[%clk 0:02:30]}  Bc6 {[%clk 0:01:43]} 18. d5 {[%clk 0:02:16]}  Bxb2 {[%clk 0:01:42]} 19. dxc6 {[%clk 0:02:09]}  Bxa1 {[%clk 0:01:40]} 20. Qxa1 {[%clk 0:02:04]}  bxc6 {[%clk 0:01:40]} 21. h3 {[%clk 0:01:54]}  e5 {[%clk 0:01:25]} 22. Ne2 {[%clk 0:01:41]}  Rc8 {[%clk 0:01:15]} 23. Qc3 {[%clk 0:01:37]}  f5 {[%clk 0:01:07]} 24. Qg3 {[%clk 0:01:20]}  f4 {[%clk 0:00:51]} 25. Qd3 {[%clk 0:01:13]}  f3 {[%clk 0:00:46]} 26. Nc3 {[%clk 0:01:09]}  Kg7 {[%clk 0:00:36]} 27. Rd1 {[%clk 0:01:06]}  Qa5 {[%clk 0:00:24]} 28. Ne4 {[%clk 0:00:53]}  d5 {[%clk 0:00:24]} 29. Ng5 {[%clk 0:00:49]}  Rf6 {[%clk 0:00:18]} 30. Qe3 {[%clk 0:00:37]}  e4 {[%clk 0:00:16]} 31. Qd4 {[%clk 0:00:31]}  Re8 {[%clk 0:00:16]} 32. Nxh7 {[%clk 0:00:30]}  Qd8 {[%clk 0:00:09]} 33. Nxf6 {[%clk 0:00:22]}  Qxf6 {[%clk 0:00:09]} 34. Qxa7+ {[%clk 0:00:20]}  Re7 {[%clk 0:00:09]} 35. Qe3 {[%clk 0:00:19]}  Qe5 {[%clk 0:00:07]} 36. a4 {[%clk 0:00:18]}  Rd7 {[%clk 0:00:06]} 37. Qd4 {[%clk 0:00:15]}  Kf6 {[%clk 0:00:06]} 38. a5 {[%clk 0:00:10]}  Qxd4 {[%clk 0:00:05]} 39. Rxd4 {[%clk 0:00:11]}  Ke5 {[%clk 0:00:06]} 40. Rd1 {[%clk 0:00:10]}  d4 {[%clk 0:00:07]} 41. b4 {[%clk 0:00:10]}  e3 {[%clk 0:00:05]} 42. Ra1 {[%clk 0:00:07]}  e2 {[%clk 0:00:04]} 43. Kh2 {[%clk 0:00:03]}  Kf4 {[%clk 0:00:03]} 44. a6 {[%clk 0:00:03]}  d3 {[%clk 0:00:03]} 45. b5 {[%clk 0:00:03]}  cxb5 {[%clk 0:00:02]} 46. cxb5 {[%clk 0:00:03]}  d2 {[%clk 0:00:03]} 47. b6 {[%clk 0:00:04]}  e1=Q {[%clk 0:00:02]} 48. Ra4+ {[%clk 0:00:04]}  Kg5 {[%clk 0:00:01]} 49. Ra5+ {[%clk 0:00:03]}  Kh6 {[%clk 0:00:01]} 50. Kg3 {[%clk 0:00:03]}  d1=Q {[%clk 0:00:01]} 51. g5+ {[%clk 0:00:00]}  Kh5 {[%clk 0:00:01]} 0-1


[Site "https://www.chess.com"]